bitfinex-derivatives/quotes_ETHF0:USTF0_20250107
["timestamp","ask_amount","ask_price","bid_price","bid_amount"]
[1736273141795,3.49749,3453.0,3452.9,0.28969]
[1736273141993,0.2897,3452.9,3452.8,0.2897]
[1736273142198,4.4779,3453.2,3452.8,0.2897]
[1736273142405,4.76758,3453.2,3452.6,3.2078]
[1736273142591,0.28969,3453.1,3452.9,0.28969]
[1736273142794,0.72412,3453.5,3452.6,5.94981023]
[1736273142994,0.28968,3453.1,3452.9,0.28969]
[1736273143700,0.72408,3453.7,3452.9,0.28969]
[1736273143902,0.28969,3453.0,3452.8,0.2897]
[1736273144098,0.2897,3452.9,3452.6,5.94981023]
[1736273144301,0.28971,3452.8,3452.6,3.49752]
[1736273144495,0.28971,3452.7,3452.6,3.2078]
[1736273144697,0.28971,3452.7,3452.6,3.49752]
[1736273145003,0.28971,3452.7,3452.6,3.2078]
[1736273145396,0.28971,3452.7,3452.6,3.49752]
[1736273145798,0.28971,3452.7,3452.6,3.2078]
[1736273146007,0.28971,3452.7,3452.6,3.49752]
[1736273146506,0.28971,3452.7,3452.6,3.2078]
[1736273147107,7.7688,3453.0,3452.2,10.38181023]
[1736273147310,0.28975,3452.3,3452.2,5.94981023]
[1736273147804,0.28977,3452.1,3452.0,1.422]
[1736273148006,0.28978,3451.9,3451.8,5.94981023]
[1736273148214,0.28975,3452.3,3452.2,0.28975]
[1736273148418,0.28975,3452.3,3452.2,5.94981023]
[1736273148628,0.28975,3452.3,3452.2,3.2078]
[1736273149308,3.2078,3452.5,3451.8,2.74201023]
[1736273149511,0.28978,3451.9,3451.8,2.74201023]
[1736273149714,0.28978,3451.9,3451.8,3.03180023]
[1736273149914,0.28977,3452.1,3451.9,0.28978]
[1736273150513,3.2078,3452.5,3451.8,2.74201023]
[1736273150709,0.72436,3452.4,3451.8,2.74201023]
[1736273151019,0.28977,3452.1,3452.0,0.28977]
[1736273151412,0.28978,3452.0,3451.9,0.28978]
[1736273151608,3.93215,3452.5,3451.8,2.74201023]
[1736273151809,0.28978,3452.0,3451.9,0.28978]
[1736273152224,3.93214,3452.5,3451.7,3.2078]
[1736273152522,0.28977,3452.1,3452.0,0.28977]
[1736273152817,0.28979,3451.8,3451.7,3.2078]
[1736273153021,0.28979,3451.8,3450.9,0.72465]
[1736273153022,0.72454,3451.6,3450.9,0.28986]
[1736273153221,0.28987,3450.9,3450.8,0.28987]
[1736273153522,4.3987,3451.5,3450.8,3.2078]
[1736273153717,0.28985,3451.1,3450.8,3.2078]
[1736273153920,4.3987,3451.5,3451.0,0.28985]
[1736273154217,0.28985,3451.2,3451.0,0.28985]
[1736273154918,0.28988,3450.7,3450.6,3.2078]
[1736273155117,4.3987,3451.5,3450.6,3.2078]
[1736273155318,0.28988,3450.7,3450.6,3.2078]
[1736273155815,0.28988,3450.8,3450.6,3.49769]
[1736273156415,0.28988,3450.7,3450.6,3.49769]
[1736273156726,0.28988,3450.8,3450.6,3.49769]
[1736273157023,0.72461,3451.2,3450.6,3.2078]
[1736273157322,0.28988,3450.8,3450.6,3.49769]
[1736273157725,0.28987,3450.9,3450.7,0.28988]
[1736273158210,0.28986,3451.0,3450.8,0.28987]
[1736273158417,0.28983,3451.4,3451.1,0.28984]
[1736273158617,4.3987,3451.5,3450.6,3.2078]
[1736273159121,0.72457,3451.4,3450.6,3.2078]
[1736273159427,0.28988,3450.8,3450.6,3.49769]
[1736273159721,3.2078,3451.7,3450.6,5.94981023]
[1736273159921,0.72453,3451.6,3450.6,5.94981023]
[1736273160122,3.2078,3451.3,3450.6,3.2078]
[1736273160324,0.28988,3450.7,3450.6,3.2078]
[1736273160723,4.5911,3451.2,3450.6,5.94981023]
[1736273161020,0.28987,3450.9,3450.6,3.2078]
[1736273161222,0.28987,3450.9,3450.7,0.28988]
[1736273161417,0.28986,3451.0,3450.8,0.28987]
[1736273161822,0.28987,3450.9,3450.7,0.28988]
[1736273162217,0.28985,3451.1,3450.8,0.28987]
[1736273162423,4.5911,3451.2,3450.7,2.58398658]
[1736273162722,4.5911,3451.2,3450.8,0.28987]
[1736273162923,4.5911,3451.2,3450.7,2.29410658]
[1736273163124,4.5911,3451.2,3450.8,0.28987]
[1736273163426,0.28988,3450.7,3450.6,3.2078]
[1736273163718,3.2078,3450.8,3450.2,3.2078]
[1736273163921,0.28991,3450.4,3450.2,3.2078]
[1736273164118,0.28991,3450.4,3450.2,3.49772]
[1736273164520,0.28992,3450.3,3450.2,3.2078]
[1736273164721,3.2078,3450.8,3450.1,0.28993]
[1736273164922,0.72471,3450.7,3450.0,4.82254]
[1736273165429,0.28993,3450.2,3450.0,4.82254]
[1736273166627,0.28992,3450.3,3450.1,0.28993]
[1736273166825,3.2078,3450.8,3450.1,0.28993]
[1736273167125,0.28991,3450.4,3450.0,4.5326]
[1736273167319,0.28992,3450.3,3450.2,0.28992]
[1736273167517,0.72472,3450.7,3450.0,4.5326]
[1736273167713,0.28992,3450.3,3450.1,0.28993]
[1736273168126,0.72472,3450.7,3450.1,0.28993]
[1736273168625,3.2078,3450.8,3450.0,4.5326]
[1736273168831,0.28993,3450.1,3449.8,3.49775]
[1736273169128,0.28994,3450.1,3449.9,0.28995]
[1736273169324,0.28995,3450.0,3449.9,0.28995]
[1736273169824,0.28998,3449.5,3449.4,7.7654]
[1736273170323,0.28998,3449.5,3449.4,8.05539]
[1736273170520,0.28996,3449.9,3449.7,0.28996]
[1736273170825,0.28996,3449.9,3449.5,0.28998]
[1736273171023,3.2078,3450.3,3449.8,2.29410658]
[1736273171226,7.5497,3450.3,3449.8,0.28995]
[1736273171427,7.5497,3450.3,3449.5,2.29410658]
[1736273171622,0.28998,3449.6,3449.5,0.28998]
[1736273171819,0.28996,3449.8,3449.4,7.7654]
[1736273172024,0.28997,3449.7,3449.4,7.7654]
[1736273172219,0.28997,3449.7,3449.6,0.28998]
[1736273172425,0.28996,3449.8,3449.7,0.28997]
[1736273172627,0.28998,3449.6,3449.5,0.28998]
[1736273172829,0.28997,3449.7,3449.6,0.28997]
[1736273173032,0.72482,3450.2,3449.5,2.29410658]
[1736273173226,0.28996,3449.9,3449.8,0.28996]
[1736273173525,7.5497,3450.3,3449.5,2.29410658]
[1736273173732,0.28994,3450.1,3449.5,2.29410658]
[1736273173931,0.28995,3450.0,3449.9,0.28995]
[1736273174228,0.28994,3450.1,3450.0,0.28994]
[1736273175132,0.2899,3450.6,3450.5,0.2899]
[1736273175324,0.28991,3450.5,3450.4,0.28991]
[1736273175525,3.2078,3450.7,3450.1,2.29410658]
[1736273175722,3.2078,3450.7,3450.6,0.28989]
[1736273175923,0.28984,3451.3,3451.2,0.28983]
[1736273176224,3.2078,3451.4,3451.3,0.28983]
[1736273176732,4.6945,3451.9,3451.8,0.28979]
[1736273176929,0.28977,3452.1,3451.7,5.50190658]
[1736273177230,3.68144494,3452.2,3452.1,0.28977]
[1736273177730,0.28977,3452.1,3452.0,0.28977]
[1736273178332,0.28974,3452.4,3452.0,0.28977]
[1736273178632,0.28977,3452.1,3452.0,0.28977]
[1736273179027,4.5813,3452.5,3451.7,5.50190658]
[1736273179231,0.28977,3452.1,3452.0,0.28977]
[1736273179732,0.28976,3452.2,3452.0,0.28977]
[1736273180032,3.2078,3453.2,3452.1,5.94852617]
[1736273180329,3.2078,3453.5,3452.9,3.2078]
[1736273180632,0.72415,3453.4,3452.6,3.49752]
[1736273180831,0.2897,3453.0,3452.6,3.49752]
[1736273181032,3.2078,3453.5,3452.6,3.2078]
[1736273181223,0.28966,3453.4,3453.0,0.28969]
[1736273181427,3.2078,3453.5,3452.8,2.74072617]
[1736273181625,3.49745,3453.5,3453.2,0.28967]
[1736273181821,3.2078,3453.5,3452.8,2.74072617]
[1736273182027,4.6251,3453.7,3453.5,0.28964]
[1736273182230,4.6251,3453.7,3453.4,0.28965]
[1736273182831,7.8329,3453.7,3452.8,2.74072617]
[1736273183030,7.8329,3453.7,3452.7,3.2078]
[1736273183231,0.28969,3453.1,3452.7,3.49751]
[1736273183434,3.2078,3453.3,3452.7,3.2078]
[1736273183435,0.28971,3452.8,3452.7,3.2078]
[1736273183640,3.2078,3453.3,3452.7,3.2078]
[1736273183830,0.2897,3453.0,3452.7,3.2078]
[1736273184031,3.2078,3453.3,3452.7,3.2078]
[1736273184231,0.28971,3452.8,3452.4,0.28973]
[1736273184432,0.2897,3452.9,3452.5,0.28973]
[1736273184639,0.2897,3452.9,3452.3,9.99187243]
[1736273184844,0.28967,3453.3,3452.5,0.28973]
[1736273185142,0.28967,3453.3,3452.9,0.28969]
[1736273185436,3.2078,3453.4,3453.2,0.28967]
[1736273185634,3.2078,3453.4,3453.3,0.28966]
[1736273185840,3.2078,3453.4,3452.8,7.00952617]
[1736273186238,3.2078,3453.4,3452.7,3.2078]
[1736273186537,0.2897,3453.0,3452.7,3.2078]
[1736273186734,0.28973,3452.6,3452.3,3.49755]
[1736273186935,0.28973,3452.6,3452.0,2.74072617]
[1736273187142,4.4913,3452.8,3452.3,0.28975]
[1736273187441,4.4913,3452.8,3452.0,2.74072617]
[1736273187734,0.28974,3452.4,3452.1,0.28976]
[1736273187940,0.28975,3452.3,3452.0,0.28977]
[1736273188337,0.28974,3452.4,3451.9,4.2688]
[1736273188542,0.28974,3452.4,3452.1,0.28976]
[1736273189037,3.2078,3452.5,3451.9,4.2688]
[1736273189239,0.28975,3452.3,3452.0,0.28977]
[1736273189546,3.2078,3452.5,3451.9,4.2688]
[1736273189843,3.49754,3452.5,3452.2,0.28975]
[1736273190337,4.4913,3452.8,3452.7,0.28972]
[1736273190537,3.2078,3453.0,3452.5,0.28973]
[1736273190839,3.2078,3453.0,3452.4,5.94852617]
[1736273191044,3.2078,3453.0,3452.9,0.2897]
[1736273191344,0.28966,3453.4,3453.1,0.28968]
[1736273191548,3.2078,3453.5,3452.8,2.74072617]
[1736273191844,8.8807,3453.7,3453.3,0.28966]
[1736273191845,0.28964,3453.6,3453.3,0.28966]
[1736273192037,3.2078,3453.6,3452.9,4.509]
[1736273192236,3.2078,3453.6,3452.9,4.79869]
[1736273192735,0.28968,3453.2,3452.9,4.79869]
[1736273193143,0.28966,3453.4,3453.1,0.28967]
[1736273193543,0.28965,3453.5,3453.1,0.28968]
[1736273193743,0.28966,3453.4,3453.1,0.28968]
[1736273194042,0.28967,3453.3,3453.1,0.28968]
[1736273194638,3.2078,3453.6,3453.1,0.28968]
[1736273194639,0.28966,3453.4,3453.1,0.28968]
[1736273194944,0.28967,3453.3,3453.0,0.28969]
[1736273195147,3.2078,3453.6,3452.9,4.509]
[1736273195442,0.28969,3453.0,3452.8,0.2897]
[1736273195641,3.2078,3453.1,3452.4,7.40982617]
[1736273195848,0.28969,3453.0,3452.5,0.28973]
[1736273196043,3.2078,3453.1,3452.3,7.7288]
[1736273196244,0.28971,3452.9,3452.6,0.28972]
[1736273196447,3.2078,3453.1,3452.5,0.28973]
[1736273196640,0.2897,3452.9,3452.7,0.28971]
[1736273196944,3.2078,3453.1,3452.8,0.2897]
[1736273197148,3.49749,3453.1,3452.9,0.2897]
[1736273197546,3.2078,3453.1,3452.4,2.74072617]
[1736273197743,3.2078,3453.1,3453.0,0.28969]
[1736273198946,11.7616,3453.9,3452.7,3.2078]
[1736273199147,0.28967,3453.2,3453.0,0.28969]
[1736273199750,0.28968,3453.1,3452.9,0.2897]
[1736273200247,3.2078,3453.5,3452.7,3.2078]
[1736273200549,0.28968,3453.2,3453.0,0.28968]
[1736273200741,3.2078,3453.5,3452.7,3.2078]
[1736273200946,0.2897,3452.9,3452.7,3.49751]
[1736273201244,3.2078,3453.5,3452.7,3.2078]
[1736273201444,0.2897,3452.9,3452.7,3.49751]
[1736273201646,0.2897,3453.0,3452.8,0.2897]
[1736273202050,0.2897,3452.9,3452.8,0.2897]
[1736273202352,3.2078,3453.5,3452.8,2.74072617]
[1736273202550,1.01368,3453.8,3453.3,0.28966]
[1736273202750,3.2078,3453.9,3453.2,8.9262]
[1736273202952,3.2078,3453.9,3453.2,11.66692617]
[1736273203453,3.2078,3453.9,3453.2,12.39110617]
[1736273203957,0.28962,3453.9,3453.7,0.28963]
[1736273204148,0.28963,3453.8,3453.6,0.28964]
[1736273204654,7.7396,3454.3,3453.5,3.2078]
[1736273205045,7.7396,3454.3,3453.9,0.28961]
[1736273205243,7.7396,3454.3,3453.5,3.2078]
[1736273205447,0.28962,3453.9,3453.6,0.28964]
[1736273205648,0.28962,3453.9,3453.7,0.28963]
[1736273206356,7.7396,3454.3,3453.5,3.2078]
[1736273206655,0.28962,3453.9,3453.7,0.28963]
[1736273207048,7.7396,3454.3,3453.8,0.28962]
[1736273207251,3.2078,3454.3,3454.0,2.74072617]
[1736273207556,3.2078,3454.3,3454.2,0.28959]
[1736273208749,3.2078,3454.3,3454.0,2.74072617]
[1736273208955,3.2078,3454.3,3453.6,2.74072617]
[1736273209160,3.2078,3454.3,3453.6,0.28964]
[1736273209161,1.01357,3454.2,3453.6,0.28964]
[1736273209351,0.28962,3453.9,3453.7,0.28963]
[1736273209551,0.28962,3453.8,3453.5,3.2078]
[1736273209853,0.28961,3454.0,3453.8,0.28962]
[1736273210052,0.28963,3453.8,3453.6,0.28964]
[1736273210251,9.0071,3454.2,3453.6,0.28964]
[1736273210252,0.28962,3453.9,3453.6,0.28964]
[1736273210452,9.0071,3454.2,3453.6,2.74072617]
[1736273210661,4.5425,3454.2,3454.0,0.2896]
[1736273210956,0.2896,3454.1,3454.0,0.2896]
[1736273211157,0.28959,3454.2,3454.0,0.2896]
[1736273211356,3.2078,3454.3,3453.6,2.74072617]
[1736273211859,0.28961,3454.0,3453.8,0.28962]
[1736273212155,3.2078,3454.3,3453.6,2.74072617]
[1736273212358,3.2078,3454.3,3453.9,0.28961]
[1736273213152,0.28961,3454.0,3453.9,0.28961]
[1736273213763,3.2078,3454.3,3453.8,1.415]
[1736273213961,0.28956,3454.5,3454.2,2.74072617]
[1736273214159,0.28956,3454.5,3454.3,0.28957]
[1736273214459,3.49736,3454.7,3454.5,0.28956]
[1736273214759,3.49735,3454.7,3454.5,0.28956]
[1736273214957,0.28956,3454.5,3454.4,0.28957]
[1736273215151,3.2078,3454.7,3454.0,8.7199]
[1736273215352,0.28958,3454.3,3454.1,0.2896]
[1736273215758,0.28958,3454.3,3454.0,8.7199]
[1736273216060,0.28958,3454.3,3454.1,0.28959]
[1736273216263,4.2412,3454.6,3454.0,8.7199]
[1736273216457,4.2412,3454.6,3453.2,0.28967]
[1736273216458,0.28967,3453.3,3453.2,0.28967]
[1736273216662,0.28969,3453.0,3452.9,6.78407243]
[1736273216855,0.2897,3452.9,3452.8,7.07378243]
[1736273217060,0.2897,3452.9,3452.8,6.78407243]
[1736273218150,8.7382,3453.4,3452.8,6.78407243]
[1736273218366,0.28967,3453.3,3452.9,3.2078]
[1736273218559,8.7382,3453.4,3452.9,3.2078]
[1736273218754,9.02786,3453.4,3453.2,0.28967]
[1736273218958,0.28967,3453.3,3453.2,0.28967]
[1736273219255,8.7382,3453.4,3452.9,3.2078]
[1736273219458,0.28969,3453.0,3452.9,3.2078]
[1736273220057,3.2078,3453.0,3452.3,14.37777243]
[1736273220457,3.2078,3453.0,3452.3,9.99187243]
[1736273220862,3.49749,3453.0,3452.3,9.99187243]
[1736273221064,12.23566,3453.4,3452.6,0.72431]
[1736273221361,0.28969,3453.0,3452.8,0.2897]
[1736273221564,0.28968,3453.2,3453.0,0.28969]
[1736273222053,0.28968,3453.2,3452.6,4.4599]
[1736273222259,0.28968,3453.2,3452.9,0.28969]
[1736273222459,0.28966,3453.3,3452.6,4.4599]
[1736273222668,11.946,3453.4,3452.8,0.2897]
[1736273222858,11.946,3453.4,3452.6,4.4599]
[1736273223459,0.72416,3453.3,3452.5,1.415]
[1736273223659,0.28973,3452.5,3452.4,6.78407243]
[1736273223862,0.28974,3452.4,3452.3,12.25173275]
[1736273224674,0.28974,3452.4,3452.3,9.04393275]
[1736273225171,0.28976,3452.2,3452.0,0.28977]
[1736273225465,0.72429,3452.8,3451.9,11.27116644]
[1736273225659,0.28974,3452.4,3451.9,11.27116644]
[1736273225858,0.72427,3452.8,3451.9,11.27116644]
[1736273226163,0.28976,3452.2,3451.9,11.56094644]
[1736273226461,3.2078,3452.5,3451.9,11.27116644]
[1736273226664,0.28976,3452.2,3452.0,0.28977]
[1736273226864,0.28977,3452.1,3451.9,7.10103644]
[1736273227063,0.28977,3452.0,3451.9,6.81126644]
[1736273227265,3.2078,3452.5,3451.9,6.81126644]
[1736273227768,0.28977,3452.0,3451.9,6.81126644]
[1736273228170,3.2078,3452.5,3451.9,6.81126644]
[1736273228369,0.28978,3452.0,3451.8,3.2078]
[1736273229271,0.28978,3451.9,3451.8,3.2078]
[1736273229474,3.2078,3452.1,3451.5,6.81126644]
[1736273229770,4.6838,3452.6,3451.7,5.94852617]
[1736273229973,0.28975,3452.4,3452.1,0.28976]
[1736273230159,4.6838,3452.6,3452.4,0.28973]
[1736273230362,4.6838,3452.6,3452.1,3.2078]
[1736273230764,0.28974,3452.4,3452.2,0.28975]
[1736273231369,4.6838,3452.6,3452.2,0.28975]
[1736273231567,4.97353,3452.6,3452.3,0.28974]
[1736273231768,4.97353,3452.6,3452.4,0.28974]
[1736273231969,0.28973,3452.6,3452.5,0.28973]
[1736273232170,7.5434,3452.9,3452.1,5.94852617]
[1736273232472,4.3586,3453.3,3452.1,5.94852617]
[1736273232473,3.2078,3453.2,3452.1,5.94852617]
[1736273232662,3.2078,3453.2,3452.2,0.7244]
[1736273232868,3.2078,3453.2,3452.1,5.94852617]
[1736273233073,3.49748,3453.2,3453.0,0.28969]
[1736273233274,3.2078,3453.2,3453.1,0.28968]
[1736273233471,0.28969,3453.1,3452.9,0.28969]
[1736273233671,0.28969,3453.1,3452.6,8.7901]
[1736273233868,3.2078,3453.2,3452.6,8.7901]
[1736273234079,0.28969,3453.1,3452.9,0.28969]
[1736273234269,3.2078,3453.2,3452.6,8.7901]
[1736273234874,0.28968,3453.1,3452.6,8.7901]
[1736273235074,3.49748,3453.2,3452.6,8.7901]
[1736273235269,3.2078,3453.2,3453.1,0.28968]
[1736273235466,3.2078,3453.6,3452.6,8.7901]
[1736273235668,3.2078,3453.6,3453.2,0.28967]
[1736273235669,0.28967,3453.3,3453.2,0.28967]
[1736273236077,0.28966,3453.4,3453.2,0.28967]
[1736273236776,0.28966,3453.3,3453.2,0.28967]
[1736273236973,0.28966,3453.3,3453.1,0.28968]
[1736273237174,0.28966,3453.3,3453.1,0.28967]
[1736273237373,0.28966,3453.3,3452.9,3.2078]
[1736273237571,0.28969,3453.1,3452.9,3.49749]
[1736273237775,3.2078,3453.6,3453.0,0.28969]
[1736273237977,3.2078,3453.6,3452.9,3.2078]
[1736273238177,0.28969,3453.1,3452.9,3.2078]
[1736273238382,0.28969,3453.0,3452.9,3.4975]
[1736273238579,3.2078,3453.2,3452.7,4.53698055]
[1736273238783,0.28972,3452.7,3452.6,4.53698055]
[1736273239278,3.2078,3453.2,3452.6,4.53698055]
[1736273239482,0.28971,3452.8,3452.6,4.82670055]
[1736273239879,0.72421,3453.1,3452.4,3.2078]
[1736273240083,0.28973,3452.5,3452.4,3.2078]
[1736273240375,3.2078,3452.5,3452.3,4.53698055]
[1736273240577,0.28974,3452.4,3452.3,4.53698055]
[1736273240890,4.73254,3452.4,3452.3,4.53698055]
[1736273241090,4.73254,3452.4,3451.9,9.04393275]
[1736273241091,0.28977,3452.0,3451.9,4.53698055]
[1736273242388,0.7244,3452.2,3451.6,3.2078]
[1736273242584,0.2898,3451.8,3451.7,0.2898]
[1736273244095,0.7244,3452.2,3451.4,9.2803]
[1736273244096,0.28982,3451.5,3451.4,9.2803]
[1736273244991,0.28982,3451.5,3451.4,4.6664]
[1736273248194,0.28982,3451.5,3451.3,0.05]
[1736273248195,0.28982,3451.4,3451.3,0.05]
[1736273251291,0.28982,3451.4,3449.8,5.26187055]
[1736273251292,7.78980572,3451.4,3449.8,4.53698055]
[1736273251493,0.28995,3449.9,3449.8,4.53698055]
[1736273251895,4.5775,3450.4,3449.8,7.74478055]
[1736273252089,3.2078,3450.7,3450.0,2.74072617]
[1736273252286,4.6585,3450.9,3450.4,2.74072617]
[1736273252490,3.2078,3451.1,3450.3,3.2078]
[1736273252691,0.28991,3450.4,3450.3,3.2078]
[1736273252891,3.93243,3451.1,3450.0,4.44266617]
[1736273252892,0.28993,3450.2,3450.1,3.2078]
[1736273253093,0.28992,3450.2,3450.1,3.2078]
[1736273253902,3.93253,3450.7,3449.9,4.3478]
[1736273254105,0.28994,3450.1,3449.9,7.5556]
[1736273254602,3.2078,3450.7,3449.9,7.5556]
[1736273254800,0.28994,3450.0,3449.9,7.5556]
[1736273255001,0.28994,3450.0,3449.9,4.3478]
[1736273255503,0.72479,3450.4,3449.8,7.8806]
[1736273255504,0.28995,3449.9,3449.8,7.8806]
[1736273256000,0.28995,3449.9,3449.8,3.2078]
[1736273257801,0.28998,3449.5,3449.4,3.2078]
[1736273258199,7.6174,3450.3,3449.4,3.2078]
[1736273258405,3.2078,3450.8,3450.0,2.74072617]
[1736273258592,3.2078,3450.8,3450.1,8.7366]
[1736273258798,0.28989,3450.7,3450.4,6.23842617]
[1736273259101,3.2078,3451.2,3450.4,5.94852617]
[1736273259292,3.2078,3451.2,3450.4,3.2078]
[1736273259293,0.2899,3450.5,3450.4,3.2078]
[1736273262006,0.28997,3449.7,3449.6,3.2078]
[1736273265115,0.72476,3450.5,3449.6,3.2078]
[1736273265402,0.28992,3450.3,3450.2,3.2078]
[1736273265798,0.28992,3450.3,3450.2,3.49773]
[1736273266111,0.28992,3450.3,3450.2,3.2078]
[1736273266313,0.72471,3450.8,3450.3,0.28991]
[1736273266314,0.28992,3450.4,3450.3,0.28991]
[1736273266608,0.28992,3450.4,3450.3,9.11991]
[1736273266915,0.28992,3450.4,3450.3,9.11992]
[1736273267208,3.93259,3450.4,3449.4,7.74478055]
[1736273267408,0.28996,3449.8,3449.7,0.28996]
[1736273267606,0.28996,3449.8,3449.7,3.49776]
[1736273267802,0.28996,3449.8,3449.7,3.2078]
[1736273268307,0.28996,3449.8,3449.7,3.49777]
[1736273268516,0.28996,3449.9,3449.8,0.28995]
[1736273268716,0.72474,3450.6,3450.0,0.28994]
[1736273268717,0.28994,3450.1,3450.0,0.28994]
[1736273269207,0.2899,3450.6,3449.9,1.01483]
[1736273269407,0.2899,3450.6,3450.5,0.2899]
[1736273269710,0.28987,3451.0,3450.9,0.28986]
[1736273269905,3.39168494,3451.8,3450.9,5.95155555]
[1736273269906,4.11618494,3451.8,3450.9,5.95155555]
[1736273270105,3.39168494,3451.8,3451.0,4.5643]
[1736273270302,8.9418,3451.6,3450.5,13.43555555]
[1736273270504,0.28989,3450.6,3450.5,12.02655555]
[1736273270803,0.28989,3450.6,3450.5,12.31645555]
[1736273271001,0.28987,3450.9,3450.8,0.28987]
[1736273271298,0.28986,3451.0,3450.9,0.28986]
[1736273271511,9.66635,3451.6,3450.8,3.2078]
[1736273271512,0.28987,3450.9,3450.8,3.49767]
[1736273271909,0.72457,3451.4,3450.9,0.28986]
[1736273271910,0.28986,3451.0,3450.9,0.28986]
[1736273272109,0.28986,3451.1,3451.0,0.28985]
[1736273272309,4.5953,3451.6,3450.9,2.74375555]
[1736273272504,0.28984,3451.3,3451.2,0.28984]
[1736273272709,0.28984,3451.2,3451.1,0.28984]
[1736273273213,0.28986,3451.1,3451.0,0.28986]
[1736273273411,0.28986,3451.0,3450.9,3.03361555]
[1736273273805,0.28985,3451.1,3451.0,0.28985]
[1736273274812,0.28987,3450.9,3450.8,3.49767]
[1736273275513,0.28987,3450.9,3450.8,3.2078]
[1736273276616,0.28987,3450.9,3450.8,3.49768]
[1736273276914,0.28983,3451.4,3451.3,0.28983]
[1736273277109,0.28983,3451.4,3451.3,3.2078]
[1736273277317,0.28986,3451.0,3450.9,3.2078]
[1736273278013,0.28986,3451.0,3450.9,3.49767]
[1736273278315,0.28986,3451.0,3450.9,3.2078]
[1736273278516,0.28986,3451.1,3450.9,3.2078]
[1736273278816,0.28986,3451.1,3451.0,0.28986]
[1736273279019,0.72454,3451.6,3450.9,3.2078]
[1736273279209,0.28986,3451.0,3450.9,3.2078]
[1736273282517,0.28989,3450.6,3450.5,3.2078]
[1736273284218,4.6724,3451.2,3450.5,3.2078]
[1736273284615,5.39702,3451.2,3450.6,0.28989]
[1736273284818,0.28988,3450.8,3450.6,0.28989]
[1736273285018,0.28987,3450.9,3450.5,3.2078]
[1736273285218,4.6724,3451.2,3451.1,0.28985]
[1736273285419,4.6724,3451.2,3450.7,0.72472]
[1736273285420,7.8127,3451.7,3450.9,3.2078]
[1736273285817,0.72455,3451.5,3450.8,0.28987]
[1736273286017,0.28989,3450.6,3450.5,3.49769]
[1736273286217,0.28989,3450.6,3450.5,8.03468055]
[1736273286823,0.28989,3450.6,3450.5,7.74478055]
[1736273287123,0.28989,3450.7,3450.6,0.28988]
[1736273287415,0.28989,3450.6,3450.5,7.74478055]
[1736273287818,0.28989,3450.6,3450.5,3.2078]
[1736273288725,2.58461418,3450.6,3450.5,3.2078]
[1736273289026,2.58461418,3450.6,3450.4,4.53698055]
[1736273289027,0.2899,3450.5,3450.4,4.53698055]
[1736273289824,7.8337,3450.8,3450.3,2.29472418]
[1736273290025,0.28988,3450.7,3450.3,6.67852418]
[1736273290321,0.28991,3450.4,3450.3,0.28991]
[1736273290519,4.6259,3450.8,3450.2,3.2078]
[1736273290717,4.6259,3450.8,3450.3,0.28991]
[1736273290718,0.28991,3450.4,3450.3,0.28991]
[1736273290917,0.28989,3450.7,3450.6,0.28989]
[1736273291117,11.11910051,3451.6,3450.6,3.2078]
[1736273291320,0.72457,3451.4,3450.7,3.2078]
[1736273291528,0.72459,3451.3,3450.7,0.28988]
[1736273291820,0.28987,3451.0,3450.8,0.28987]
[1736273292128,3.2078,3451.4,3450.7,3.2078]
[1736273292427,0.28988,3450.8,3450.7,3.2078]
[1736273292919,0.28987,3450.9,3450.7,3.2078]
[1736273293123,0.28987,3450.9,3450.6,4.53698055]
[1736273293124,0.28987,3450.9,3450.8,0.28987]
[1736273293326,0.28987,3450.9,3450.7,0.28988]
[1736273293720,0.28987,3450.9,3450.8,0.28988]
[1736273294121,0.28986,3451.0,3450.7,0.28988]
[1736273294315,3.2078,3451.4,3450.5,9.23508055]
[1736273294528,0.28983,3451.3,3451.2,0.28983]
[1736273294722,0.28984,3451.3,3451.2,0.28984]
[1736273295030,3.2078,3451.4,3451.3,0.28983]
[1736273295031,3.49763,3451.4,3451.3,0.28983]
[1736273295524,3.49763,3451.4,3450.8,5.26166055]
[1736273295727,0.28983,3451.3,3451.2,0.28983]
[1736273296529,3.2078,3451.4,3450.8,4.53698055]
[1736273296729,3.49763,3451.4,3451.3,0.28983]
[1736273297131,0.28982,3451.5,3451.4,0.28982]
[1736273297438,0.28982,3451.5,3450.8,4.53698055]
[1736273297439,8.8507,3451.6,3451.5,0.28982]
[1736273297726,9.14051,3451.6,3451.5,0.28982]
[1736273298330,9.14051,3451.6,3451.4,0.28982]
[1736273298533,8.8507,3451.6,3451.1,7.6641]
[1736273299022,9.14051,3451.6,3451.2,4.53698055]
[1736273299223,9.14051,3451.6,3451.4,0.28982]
[1736273300330,3.2078,3452.1,3451.3,2.29472418]
[1736273300528,0.28979,3451.8,3451.7,0.2898]
[1736273300728,7.6064,3452.1,3451.5,0.28982]
[1736273300931,7.6064,3452.1,3451.4,4.2678]
[1736273301128,0.2898,3451.7,3451.6,0.2898]
[1736273301333,0.2898,3451.8,3451.7,0.2898]
[1736273301826,4.3986,3452.1,3451.6,2.29472418]
[1736273302432,0.28978,3451.9,3451.8,0.28979]
[1736273302634,0.2898,3451.8,3451.7,0.2898]
[1736273302834,0.2898,3451.7,3451.6,2.58453418]
[1736273303131,0.2898,3451.7,3451.6,0.28981]
[1736273303836,0.28981,3451.6,3451.5,3.2078]
[1736273307733,0.28981,3451.6,3451.5,3.49762]
[1736273307934,0.28979,3451.9,3451.8,0.28979]
[1736273308333,6.66700051,3452.1,3452.0,0.28977]